[Event "*** Titled Tuesday Blitz"]
[Site "Chess.com"]
[Date "2020.10.27"]
[Round "10"]
[White "eljanov"]
[Black "Meri-Arabidze"]
[Result "1-0"]
[WhiteElo "2863"]
[BlackElo "2674"]
[TimeControl "180+1"]
[EndTime "11:55:38 PDT"]
[Termination "eljanov won by resignation"]

1. e4 {[%clk 0:03:00.9]} 1... c5 {[%clk 0:02:59.8]} 2. Nf3 {[%clk 0:03:00.4]}
2... e6 {[%clk 0:03:00.5]} 3. c4 {[%clk 0:02:59.4]} 3... Nc6 {[%clk 0:03:00.1]}
4. d4 {[%clk 0:02:59.4]} 4... cxd4 {[%clk 0:03:00.1]} 5. Nxd4 {[%clk 0:03:00.3]}
5... Nf6 {[%clk 0:02:54.1]} 6. Nc3 {[%clk 0:03:00.1]} 6... Bb4 {[%clk
0:02:52.5]} 7. Nxc6 {[%clk 0:03:00.3]} 7... bxc6 {[%clk 0:02:51.6]} 8. Bd3
{[%clk 0:02:59.7]} 8... e5 {[%clk 0:02:49.7]} 9. O-O {[%clk 0:02:59.2]} 9... O-O
{[%clk 0:02:49.8]} 10. Qe2 {[%clk 0:02:59.8]} 10... Qc7 {[%clk 0:02:35.5]} 11.
Bg5 {[%clk 0:02:51.6]} 11... Ne8 {[%clk 0:02:18.1]} 12. Na4 {[%clk 0:02:45.1]}
12... f6 {[%clk 0:02:02.4]} 13. Be3 {[%clk 0:02:41.8]} 13... Be7 {[%clk
0:01:59]} 14. c5 {[%clk 0:02:41.6]} 14... d5 {[%clk 0:01:54.2]} 15. cxd6 {[%clk
0:02:41.8]} 15... Nxd6 {[%clk 0:01:54.5]} 16. Rac1 {[%clk 0:02:40.7]} 16... Kh8
{[%clk 0:01:51]} 17. b3 {[%clk 0:02:38]} 17... Be6 {[%clk 0:01:46.9]} 18. f3
{[%clk 0:02:33.8]} 18... Bg8 {[%clk 0:01:42.1]} 19. Rc2 {[%clk 0:02:33.2]} 19...
Qd7 {[%clk 0:01:26.4]} 20. Rfc1 {[%clk 0:02:29.3]} 20... Nb5 {[%clk 0:01:24.1]}
21. Bc4 {[%clk 0:02:16.1]} 21... Nd4 {[%clk 0:01:21.1]} 22. Bxd4 {[%clk
0:02:16.3]} 22... exd4 {[%clk 0:01:18.3]} 23. Bxg8 {[%clk 0:02:05]} 23... Rxg8
{[%clk 0:01:14.3]} 24. Rd1 {[%clk 0:01:52.1]} 24... Rgd8 {[%clk 0:01:12.6]} 25.
Nb2 {[%clk 0:01:50]} 25... Bb4 {[%clk 0:01:03.6]} 26. Qc4 {[%clk 0:01:49.5]}
26... c5 {[%clk 0:00:51.7]} 27. Nd3 {[%clk 0:01:47.2]} 27... Rac8 {[%clk
0:00:40.8]} 28. Nxb4 {[%clk 0:01:33.4]} 28... cxb4 {[%clk 0:00:39.7]} 29. Rxd4
{[%clk 0:01:29.6]} 29... Rxc4 {[%clk 0:00:21.3]} 30. Rxd7 {[%clk 0:01:29.4]}
30... Rxd7 {[%clk 0:00:21.2]} 31. Rxc4 {[%clk 0:01:29.8]} 31... h6 {[%clk
0:00:18.5]} 32. Rc2 {[%clk 0:01:12.8]} 32... Rd1+ {[%clk 0:00:17.7]} 33. Kf2
{[%clk 0:01:13.1]} 33... Kh7 {[%clk 0:00:18.4]} 34. Ke2 {[%clk 0:01:12.3]} 34...
Rh1 {[%clk 0:00:18.5]} 35. h3 {[%clk 0:01:12]} 35... Kg6 {[%clk 0:00:18.2]} 36.
Kd3 {[%clk 0:01:12.3]} 36... a5 {[%clk 0:00:16.8]} 37. Kc4 {[%clk 0:01:12.6]}
37... f5 {[%clk 0:00:14.8]} 38. exf5+ {[%clk 0:01:11.9]} 38... Kxf5 {[%clk
0:00:15.7]} 39. Kb5 {[%clk 0:01:12.4]} 39... Kf4 {[%clk 0:00:16.1]} 40. Kxa5
{[%clk 0:01:12.6]} 40... Kg3 {[%clk 0:00:15.9]} 41. Kxb4 {[%clk 0:01:13]} 41...
Rg1 {[%clk 0:00:12.7]} 42. a4 {[%clk 0:01:12.8]} 1-0

[Event "*** Titled Tuesday Blitz"]
[Site "Chess.com"]
[Date "2020.10.27"]
[Round "10"]
[White "CMFernandez"]
[Black "WcmDominicToretto"]
[Result "1-0"]
[WhiteElo "2073"]
[BlackElo "1895"]
[TimeControl "180+1"]
[EndTime "11:55:48 PDT"]
[Termination "CMFernandez won by resignation"]

1. d4 {[%clk 0:03:00.9]} 1... d5 {[%clk 0:02:58.2]} 2. c4 {[%clk 0:03:00.5]}
2... c6 {[%clk 0:02:55.4]} 3. Nf3 {[%clk 0:02:57.8]} 3... Nf6 {[%clk 0:02:53.7]}
4. Qc2 {[%clk 0:02:58]} 4... Bg4 {[%clk 0:02:49.6]} 5. Ne5 {[%clk 0:02:56.5]}
5... Bh5 {[%clk 0:02:47]} 6. Nc3 {[%clk 0:02:55.9]} 6... e6 {[%clk 0:02:46.2]}
7. g3 {[%clk 0:02:52.7]} 7... Bd6 {[%clk 0:02:36.8]} 8. Bg2 {[%clk 0:02:52.6]}
8... O-O {[%clk 0:02:12.9]} 9. O-O {[%clk 0:02:47.3]} 9... Nbd7 {[%clk
0:01:34.1]} 10. Nxd7 {[%clk 0:02:37.3]} 10... Qxd7 {[%clk 0:01:29.4]} 11. e4
{[%clk 0:02:37.2]} 11... dxe4 {[%clk 0:01:22]} 12. Nxe4 {[%clk 0:02:36.1]} 12...
Bg6 {[%clk 0:01:15.5]} 13. Nxf6+ {[%clk 0:02:33.9]} 13... gxf6 {[%clk
0:01:13.2]} 14. Qe2 {[%clk 0:02:33.6]} 14... Be7 {[%clk 0:01:11.8]} 15. Rd1
{[%clk 0:02:30]} 15... Qc7 {[%clk 0:01:04.8]} 16. b3 {[%clk 0:02:29.3]} 16...
Rad8 {[%clk 0:01:01.6]} 17. Bb2 {[%clk 0:02:29.6]} 17... Qa5 {[%clk 0:00:56.6]}
18. h4 {[%clk 0:02:28.8]} 18... c5 {[%clk 0:00:28]} 19. h5 {[%clk 0:02:10.8]}
19... Bf5 {[%clk 0:00:25.7]} 20. g4 {[%clk 0:02:10.8]} 20... cxd4 {[%clk
0:00:22.1]} 21. gxf5 {[%clk 0:02:10.3]} 21... Qxf5 {[%clk 0:00:22.3]} 22. Bxd4
{[%clk 0:02:07.2]} 22... e5 {[%clk 0:00:20.7]} 23. Be3 {[%clk 0:02:01.9]} 23...
Bb4 {[%clk 0:00:15.1]} 24. Be4 {[%clk 0:02:01.2]} 24... Qh3 {[%clk 0:00:13.6]}
25. Qf3 {[%clk 0:01:53.9]} 25... Qxf3 {[%clk 0:00:11.2]} 26. Bxf3 {[%clk
0:01:53.8]} 26... Bc3 {[%clk 0:00:12.1]} 27. Rac1 {[%clk 0:01:51.8]} 27... Bb2
{[%clk 0:00:10.9]} 28. Rb1 {[%clk 0:01:51.7]} 28... Bc3 {[%clk 0:00:10.5]} 29.
Bxa7 {[%clk 0:01:50.5]} 29... Ra8 {[%clk 0:00:09.2]} 30. Bc5 {[%clk 0:01:48]}
30... Rfc8 {[%clk 0:00:08.9]} 31. Bxb7 {[%clk 0:01:47.1]} 31... Rxc5 {[%clk
0:00:06]} 32. Bxa8 {[%clk 0:01:47]} 32... Ra5 {[%clk 0:00:06.9]} 33. a4 {[%clk
0:01:45.1]} 33... Rxa8 {[%clk 0:00:06.5]} 34. Rd3 {[%clk 0:01:44]} 34... Bd4
{[%clk 0:00:06.2]} 35. Rbd1 {[%clk 0:01:42.9]} 35... Rb8 {[%clk 0:00:07.1]} 36.
h6 {[%clk 0:01:41]} 36... Kf8 {[%clk 0:00:06.6]} 37. Rb1 {[%clk 0:01:38.5]}
37... Rb4 {[%clk 0:00:06]} 38. Kf1 {[%clk 0:01:37.1]} 38... Ke7 {[%clk
0:00:06.9]} 39. Ke2 {[%clk 0:01:37.2]} 39... Kd6 {[%clk 0:00:07.8]} 40. Kf3
{[%clk 0:01:37.1]} 40... Kc5 {[%clk 0:00:08.7]} 41. Ke4 {[%clk 0:01:36.8]} 41...
Bxf2 {[%clk 0:00:08.1]} 42. Rf3 {[%clk 0:01:36.1]} 42... Bh4 {[%clk 0:00:07.5]}
43. Rd3 {[%clk 0:01:32.3]} 43... Bg5 {[%clk 0:00:07.4]} 44. Rd5+ {[%clk
0:01:32.2]} 44... Kb6 {[%clk 0:00:07.5]} 45. Rb5+ {[%clk 0:01:32.2]} 45... Rxb5
{[%clk 0:00:06.2]} 46. cxb5 {[%clk 0:01:32.2]} 46... Bxh6 {[%clk 0:00:06.6]} 47.
Rh1 {[%clk 0:01:30.9]} 47... Bg5 {[%clk 0:00:05.9]} 48. Rxh7 {[%clk 0:01:31.1]}
48... Bf4 {[%clk 0:00:05.5]} 49. Rxf7 {[%clk 0:01:31]} 49... Bg5 {[%clk
0:00:04.8]} 50. Rg7 {[%clk 0:01:30.2]} 50... Ka5 {[%clk 0:00:04.1]} 51. Rxg5
{[%clk 0:01:30.2]} 51... Kb4 {[%clk 0:00:05]} 52. Rxe5 {[%clk 0:01:29.5]} 52...
fxe5 {[%clk 0:00:04.8]} 53. Kxe5 {[%clk 0:01:30]} 53... Kxb3 {[%clk 0:00:05.1]}
54. b6 {[%clk 0:01:30.2]} 54... Kxa4 {[%clk 0:00:06]} 55. b7 {[%clk 0:01:30.7]}
1-0

[Event "*** Titled Tuesday Blitz"]
[Site "Chess.com"]
[Date "2020.10.27"]
[Round "10"]
[White "SergeyShtyka"]
[Black "KarstenHansch"]
[Result "0-1"]
[WhiteElo "2347"]
[BlackElo "2485"]
[TimeControl "180+1"]
[EndTime "11:55:50 PDT"]
[Termination "KarstenHansch won on time"]

1. e4 {[%clk 0:03:00.9]} 1... c6 {[%clk 0:02:58.8]} 2. Nf3 {[%clk 0:03:00.4]}
2... d5 {[%clk 0:02:59.7]} 3. Nc3 {[%clk 0:03:00.8]} 3... Bg4 {[%clk 0:02:59.9]}
4. h3 {[%clk 0:02:59.8]} 4... Bxf3 {[%clk 0:03:00.2]} 5. Qxf3 {[%clk 0:03:00]}
5... e6 {[%clk 0:02:58.9]} 6. d3 {[%clk 0:02:59.2]} 6... Bc5 {[%clk 0:02:53.4]}
7. g3 {[%clk 0:02:56.1]} 7... Nd7 {[%clk 0:02:52.2]} 8. Bg2 {[%clk 0:02:55.5]}
8... Ne7 {[%clk 0:02:52.3]} 9. O-O {[%clk 0:02:55.4]} 9... O-O {[%clk
0:02:52.3]} 10. Kh2 {[%clk 0:02:53.4]} 10... f5 {[%clk 0:02:52.4]} 11. exd5
{[%clk 0:02:48.8]} 11... exd5 {[%clk 0:02:51.8]} 12. Bg5 {[%clk 0:02:38.4]}
12... h6 {[%clk 0:02:49.8]} 13. Bxe7 {[%clk 0:02:36.2]} 13... Qxe7 {[%clk
0:02:50.7]} 14. Rae1 {[%clk 0:02:27.7]} 14... Qf6 {[%clk 0:02:50.2]} 15. Nxd5
{[%clk 0:02:12.7]} 15... cxd5 {[%clk 0:02:46]} 16. Qxd5+ {[%clk 0:02:12.8]}
16... Qf7 {[%clk 0:02:46.1]} 17. Qxb7 {[%clk 0:02:10.9]} 17... Rab8 {[%clk
0:02:45.4]} 18. Qc6 {[%clk 0:01:59.8]} 18... Rfc8 {[%clk 0:02:37.4]} 19. Qa6
{[%clk 0:01:50.4]} 19... Nf6 {[%clk 0:02:21.6]} 20. b3 {[%clk 0:01:41.1]} 20...
Bb4 {[%clk 0:02:19.5]} 21. Re2 {[%clk 0:01:38.8]} 21... Bc3 {[%clk 0:02:15.8]}
22. Qa3 {[%clk 0:00:58.7]} 22... Rc7 {[%clk 0:02:12.6]} 23. Qd6 {[%clk
0:00:57.2]} 23... Rb6 {[%clk 0:02:00]} 24. Qf4 {[%clk 0:00:54.7]} 24... Rc5
{[%clk 0:01:51.2]} 25. a3 {[%clk 0:00:48.8]} 25... a5 {[%clk 0:01:38]} 26. d4
{[%clk 0:00:43.3]} 26... Rcb5 {[%clk 0:01:32.3]} 27. a4 {[%clk 0:00:42.2]} 27...
Rb4 {[%clk 0:01:32.1]} 28. Qxf5 {[%clk 0:00:41.1]} 28... Bxd4 {[%clk 0:01:28.7]}
29. Rfe1 {[%clk 0:00:35.7]} 29... Rb8 {[%clk 0:01:22.3]} 30. Re7 {[%clk
0:00:32.5]} 30... Qf8 {[%clk 0:01:22.3]} 31. Qe6+ {[%clk 0:00:22.6]} 31... Kh8
{[%clk 0:01:21.1]} 32. Rf7 {[%clk 0:00:22.9]} 32... Qg8 {[%clk 0:01:18.3]} 33.
Bd5 {[%clk 0:00:06.9]} 33... Re8 {[%clk 0:01:01.9]} 34. Re7 {[%clk 0:00:05.5]}
34... Qxe6 {[%clk 0:01:00.5]} 35. R1xe6 {[%clk 0:00:04.6]} 35... Rxe7 {[%clk
0:01:00.5]} 36. Rxe7 {[%clk 0:00:04.6]} 36... Nxd5 {[%clk 0:01:00.8]} 37. Rd7
{[%clk 0:00:05]} 37... Nc3 {[%clk 0:01:00.1]} 38. Rxd4 {[%clk 0:00:04.9]} 38...
Rxd4 {[%clk 0:00:59.8]} 0-1

[Event "*** Titled Tuesday Blitz"]
[Site "Chess.com"]
[Date "2020.10.27"]
[Round "10"]
[White "kidagent"]
[Black "Ariadna_Atreides"]
[Result "1-0"]
[WhiteElo "2301"]
[BlackElo "2133"]
[TimeControl "180+1"]
[EndTime "11:55:52 PDT"]
[Termination "kidagent won by resignation"]

1. e4 {[%clk 0:03:00.9]} 1... c5 {[%clk 0:02:58.9]} 2. Nf3 {[%clk 0:03:00.5]}
2... d6 {[%clk 0:02:58.1]} 3. d4 {[%clk 0:03:00.6]} 3... cxd4 {[%clk 0:02:58.5]}
4. Nxd4 {[%clk 0:03:01.5]} 4... Nf6 {[%clk 0:02:58.5]} 5. Nc3 {[%clk 0:03:02.1]}
5... Nc6 {[%clk 0:02:58.9]} 6. Be3 {[%clk 0:02:59.3]} 6... Ng4 {[%clk 0:02:58]}
7. Nxc6 {[%clk 0:02:57.3]} 7... bxc6 {[%clk 0:02:54.3]} 8. Bc1 {[%clk
0:02:53.5]} 8... Qb6 {[%clk 0:02:51.1]} 9. Qf3 {[%clk 0:02:50.8]} 9... g6 {[%clk
0:02:35.5]} 10. Bd3 {[%clk 0:02:48.1]} 10... Ne5 {[%clk 0:02:30.8]} 11. Qe2
{[%clk 0:02:47.1]} 11... Nxd3+ {[%clk 0:02:27.8]} 12. cxd3 {[%clk 0:02:44.6]}
12... Bg7 {[%clk 0:02:28]} 13. O-O {[%clk 0:02:43.7]} 13... O-O {[%clk
0:02:24.2]} 14. Be3 {[%clk 0:02:43.5]} 14... Qb7 {[%clk 0:02:18.8]} 15. f4
{[%clk 0:02:41.7]} 15... Rb8 {[%clk 0:02:17.9]} 16. Nd1 {[%clk 0:02:32.5]} 16...
Be6 {[%clk 0:02:01.8]} 17. a3 {[%clk 0:02:28.9]} 17... Bb3 {[%clk 0:01:59.3]}
18. Nc3 {[%clk 0:02:21.8]} 18... d5 {[%clk 0:01:43.8]} 19. e5 {[%clk 0:02:13.7]}
19... Rfd8 {[%clk 0:01:38.9]} 20. Qf2 {[%clk 0:02:07.9]} 20... a5 {[%clk
0:01:24.9]} 21. f5 {[%clk 0:02:00.4]} 21... Bxe5 {[%clk 0:01:02.5]} 22. fxg6
{[%clk 0:01:59]} 22... fxg6 {[%clk 0:01:02.5]} 23. d4 {[%clk 0:01:49.7]} 23...
Bf6 {[%clk 0:00:57]} 24. Qg3 {[%clk 0:01:26.9]} 24... Bc4 {[%clk 0:00:53.7]} 25.
Rf2 {[%clk 0:01:27]} 25... Rf8 {[%clk 0:00:48.5]} 26. Na4 {[%clk 0:01:25.6]}
26... Qa7 {[%clk 0:00:39.8]} 27. Nc5 {[%clk 0:01:23.7]} 27... Rf7 {[%clk
0:00:29.1]} 28. Re1 {[%clk 0:01:10.1]} 28... Ba6 {[%clk 0:00:21.6]} 29. Nxa6
{[%clk 0:00:58.6]} 29... Rb3 {[%clk 0:00:13.9]} 30. Nc5 {[%clk 0:00:53.1]} 30...
Rb5 {[%clk 0:00:13.6]} 31. a4 {[%clk 0:00:44.4]} 31... Rb4 {[%clk 0:00:13.1]}
32. Ref1 {[%clk 0:00:43.3]} 32... Qb6 {[%clk 0:00:12]} 33. Nd7 {[%clk
0:00:42.5]} 33... Qb7 {[%clk 0:00:10.9]} 34. Nxf6+ {[%clk 0:00:42]} 34... exf6
{[%clk 0:00:10.5]} 35. Rxf6 {[%clk 0:00:42.2]} 35... Rxb2 {[%clk 0:00:10]} 36.
Rxf7 {[%clk 0:00:41.5]} 1-0

[Event "*** Titled Tuesday Blitz"]
[Site "Chess.com"]
[Date "2020.10.27"]
[Round "10"]
[White "guillembaches"]
[Black "MarkoPe"]
[Result "1-0"]
[WhiteElo "2399"]
[BlackElo "2218"]
[TimeControl "180+1"]
[EndTime "11:55:53 PDT"]
[Termination "guillembaches won by resignation"]

1. e4 {[%clk 0:03:00.9]} 1... c6 {[%clk 0:02:58.6]} 2. d4 {[%clk 0:03:00.1]}
2... d5 {[%clk 0:02:58.3]} 3. exd5 {[%clk 0:03:01]} 3... cxd5 {[%clk 0:02:58.3]}
4. Bd3 {[%clk 0:03:01.5]} 4... Nc6 {[%clk 0:02:58.2]} 5. c3 {[%clk 0:03:02]}
5... Nf6 {[%clk 0:02:58.4]} 6. h3 {[%clk 0:03:02.4]} 6... g6 {[%clk 0:02:41.6]}
7. Nf3 {[%clk 0:03:02.2]} 7... Bf5 {[%clk 0:02:37.9]} 8. Be2 {[%clk 0:03:02.1]}
8... Qc7 {[%clk 0:02:27]} 9. O-O {[%clk 0:03:02]} 9... Bg7 {[%clk 0:02:26.8]}
10. Be3 {[%clk 0:03:01.9]} 10... O-O {[%clk 0:02:26]} 11. Nbd2 {[%clk
0:03:01.2]} 11... a6 {[%clk 0:02:20.4]} 12. Re1 {[%clk 0:02:57.2]} 12... b5
{[%clk 0:02:19.9]} 13. a3 {[%clk 0:02:55.5]} 13... Na5 {[%clk 0:02:15.7]} 14.
Qc1 {[%clk 0:02:41.2]} 14... Nc4 {[%clk 0:02:15.4]} 15. Nxc4 {[%clk 0:02:39.5]}
15... bxc4 {[%clk 0:02:14.1]} 16. Bf4 {[%clk 0:02:32.3]} 16... Qb7 {[%clk
0:02:13.5]} 17. Bf1 {[%clk 0:02:28.4]} 17... Ne4 {[%clk 0:02:05.7]} 18. Nd2
{[%clk 0:02:24.7]} 18... Rfe8 {[%clk 0:01:49.9]} 19. Nxe4 {[%clk 0:02:17]} 19...
Bxe4 {[%clk 0:01:49.8]} 20. f3 {[%clk 0:01:44.4]} 20... Bf5 {[%clk 0:01:49.2]}
21. g4 {[%clk 0:01:42.9]} 21... Be6 {[%clk 0:01:47.1]} 22. Re2 {[%clk
0:01:40.4]} 22... Ra7 {[%clk 0:01:37.2]} 23. Bh6 {[%clk 0:01:40.4]} 23... Qc6
{[%clk 0:01:30.4]} 24. Qf4 {[%clk 0:01:36.1]} 24... Rb7 {[%clk 0:01:27.3]} 25.
Rae1 {[%clk 0:01:32.8]} 25... Reb8 {[%clk 0:01:22.5]} 26. Bxg7 {[%clk
0:01:31.8]} 26... Kxg7 {[%clk 0:01:22.2]} 27. Qe5+ {[%clk 0:01:31.9]} 27... Kg8
{[%clk 0:01:19.7]} 28. f4 {[%clk 0:01:31.8]} 28... a5 {[%clk 0:00:51.3]} 29. Bg2
{[%clk 0:01:19.2]} 29... Qd6 {[%clk 0:00:35.1]} 30. f5 {[%clk 0:01:10.2]} 30...
Qxe5 {[%clk 0:00:30.8]} 31. Rxe5 {[%clk 0:01:09.9]} 31... gxf5 {[%clk
0:00:29.9]} 32. gxf5 {[%clk 0:01:08.6]} 32... Bc8 {[%clk 0:00:28.2]} 33. Bxd5
{[%clk 0:01:07.9]} 33... Rxb2 {[%clk 0:00:18]} 34. Rxe7 {[%clk 0:01:07.9]} 34...
Rc2 {[%clk 0:00:14.7]} 35. Rxf7 {[%clk 0:00:58.1]} 35... Ba6 {[%clk 0:00:07.7]}
36. Rb7+ {[%clk 0:00:48]} 1-0

[Event "*** Titled Tuesday Blitz"]
[Site "Chess.com"]
[Date "2020.10.27"]
[Round "10"]
[White "FloMaster111"]
[Black "MattyDPerrine"]
[Result "0-1"]
[WhiteElo "2615"]
[BlackElo "2501"]
[TimeControl "180+1"]
[EndTime "11:56:00 PDT"]
[Termination "MattyDPerrine won by resignation"]

1. e4 {[%clk 0:03:00.9]} 1... c5 {[%clk 0:02:57.5]} 2. c3 {[%clk 0:03:01.1]}
2... Nf6 {[%clk 0:02:57.3]} 3. e5 {[%clk 0:03:01.6]} 3... Nd5 {[%clk 0:02:57.9]}
4. d4 {[%clk 0:03:02.1]} 4... cxd4 {[%clk 0:02:58.8]} 5. Nf3 {[%clk 0:03:01.8]}
5... e6 {[%clk 0:02:57]} 6. cxd4 {[%clk 0:03:02.4]} 6... d6 {[%clk 0:02:57.4]}
7. Bc4 {[%clk 0:03:02.8]} 7... Qc7 {[%clk 0:02:48.4]} 8. Nbd2 {[%clk 0:02:53.5]}
8... Nf4 {[%clk 0:02:36.4]} 9. exd6 {[%clk 0:02:46.3]} 9... Bxd6 {[%clk
0:02:30.7]} 10. O-O {[%clk 0:02:46.8]} 10... O-O {[%clk 0:02:26.1]} 11. g3
{[%clk 0:02:36.2]} 11... Nd5 {[%clk 0:02:22.7]} 12. Bd3 {[%clk 0:02:36.4]} 12...
b6 {[%clk 0:02:03.5]} 13. Ne4 {[%clk 0:02:34.6]} 13... Be7 {[%clk 0:01:13.7]}
14. Bg5 {[%clk 0:02:30.3]} 14... Bb7 {[%clk 0:01:05.4]} 15. Rc1 {[%clk
0:02:28.5]} 15... Qd8 {[%clk 0:01:05.7]} 16. Bxe7 {[%clk 0:02:26.1]} 16... Qxe7
{[%clk 0:01:02.7]} 17. Bb1 {[%clk 0:02:24.5]} 17... Nd7 {[%clk 0:00:57.1]} 18.
Qd3 {[%clk 0:02:24.5]} 18... Nb4 {[%clk 0:00:52.6]} 19. Qa3 {[%clk 0:02:18.2]}
19... Rfc8 {[%clk 0:00:20.1]} 20. Ne5 {[%clk 0:02:17.6]} 20... a5 {[%clk
0:00:12.1]} 21. Qe3 {[%clk 0:02:08.2]} 21... Nf6 {[%clk 0:00:12]} 22. Nxf6+
{[%clk 0:02:05.9]} 22... Qxf6 {[%clk 0:00:12.4]} 23. a3 {[%clk 0:02:05.7]} 23...
Nd5 {[%clk 0:00:12.5]} 24. Qd3 {[%clk 0:02:05.8]} 24... g6 {[%clk 0:00:12.4]}
25. f4 {[%clk 0:01:59.4]} 25... Qe7 {[%clk 0:00:11.6]} 26. Ng4 {[%clk 0:01:52]}
26... Qd8 {[%clk 0:00:08.5]} 27. f5 {[%clk 0:01:31.9]} 27... Ba6 {[%clk
0:00:06.7]} 28. Qf3 {[%clk 0:01:19.7]} 28... Bxf1 {[%clk 0:00:06]} 29. Rxf1
{[%clk 0:01:19.4]} 29... exf5 {[%clk 0:00:05]} 30. Nh6+ {[%clk 0:01:17]} 30...
Kg7 {[%clk 0:00:03.7]} 31. Nxf5+ {[%clk 0:01:04.1]} 31... gxf5 {[%clk
0:00:03.7]} 32. Qxf5 {[%clk 0:01:04.7]} 32... Nf6 {[%clk 0:00:04.6]} 33. Qg5+
{[%clk 0:00:55.5]} 33... Kh8 {[%clk 0:00:04.7]} 34. Rxf6 {[%clk 0:00:48.5]}
34... Qxd4+ {[%clk 0:00:05]} 35. Kg2 {[%clk 0:00:48.5]} 35... Qxb2+ {[%clk
0:00:04.5]} 36. Kh3 {[%clk 0:00:47.6]} 36... Qxb1 {[%clk 0:00:04.8]} 37. Rxf7
{[%clk 0:00:45.7]} 37... Qg6 {[%clk 0:00:04]} 38. Qe5+ {[%clk 0:00:44.1]} 38...
Kg8 {[%clk 0:00:04.5]} 39. Qg7+ {[%clk 0:00:45]} 39... Qxg7 {[%clk 0:00:04.9]}
0-1

[Event "*** Titled Tuesday Blitz"]
[Site "Chess.com"]
[Date "2020.10.27"]
[Round "10"]
[White "Manukyan_Artak"]
[Black "LuisFSiles"]
[Result "1-0"]
[WhiteElo "2407"]
[BlackElo "2287"]
[TimeControl "180+1"]
[EndTime "11:56:01 PDT"]
[Termination "Manukyan_Artak won by resignation"]

1. e4 {[%clk 0:03:00.9]} 1... e5 {[%clk 0:02:58.8]} 2. Nf3 {[%clk 0:03:00.6]}
2... Nc6 {[%clk 0:02:58.6]} 3. d4 {[%clk 0:03:00.3]} 3... exd4 {[%clk
0:02:58.2]} 4. Nxd4 {[%clk 0:02:59.3]} 4... g6 {[%clk 0:02:57.8]} 5. Nxc6 {[%clk
0:02:59.1]} 5... bxc6 {[%clk 0:02:57.3]} 6. Qd4 {[%clk 0:02:58.2]} 6... Qf6
{[%clk 0:02:56.3]} 7. e5 {[%clk 0:02:54.1]} 7... Qe7 {[%clk 0:02:56]} 8. f4
{[%clk 0:02:52.3]} 8... Bg7 {[%clk 0:02:53.6]} 9. Nd2 {[%clk 0:02:48.1]} 9...
Nh6 {[%clk 0:02:39]} 10. Nf3 {[%clk 0:02:45.9]} 10... O-O {[%clk 0:02:37]} 11.
Bd3 {[%clk 0:02:41.5]} 11... d6 {[%clk 0:02:33.6]} 12. O-O {[%clk 0:02:39.3]}
12... c5 {[%clk 0:02:18.6]} 13. Qf2 {[%clk 0:02:36.5]} 13... Bf5 {[%clk
0:02:12.5]} 14. Bxf5 {[%clk 0:02:29.9]} 14... Nxf5 {[%clk 0:02:11.8]} 15. Re1
{[%clk 0:02:29.4]} 15... Qd7 {[%clk 0:02:00.2]} 16. Bd2 {[%clk 0:02:25.3]} 16...
Qb5 {[%clk 0:01:48.5]} 17. Bc3 {[%clk 0:02:20.9]} 17... d5 {[%clk 0:01:48.2]}
18. b3 {[%clk 0:02:20.4]} 18... d4 {[%clk 0:01:47.2]} 19. Bb2 {[%clk 0:02:17.7]}
19... Rfe8 {[%clk 0:01:31]} 20. c4 {[%clk 0:02:04.7]} 20... Qc6 {[%clk
0:01:22.3]} 21. Re2 {[%clk 0:01:37.3]} 21... a5 {[%clk 0:01:21.4]} 22. a4 {[%clk
0:01:31.2]} 22... Rab8 {[%clk 0:01:20.5]} 23. Nd2 {[%clk 0:01:30.2]} 23... f6
{[%clk 0:00:59.3]} 24. exf6 {[%clk 0:01:25.7]} 24... Bxf6 {[%clk 0:01:00.2]} 25.
Rae1 {[%clk 0:01:19.3]} 25... Re3 {[%clk 0:00:53.9]} 26. Bc1 {[%clk 0:00:52.5]}
26... Bh4 {[%clk 0:00:27.9]} 27. g3 {[%clk 0:00:47.2]} 27... Nxg3 {[%clk
0:00:27.6]} 28. hxg3 {[%clk 0:00:36]} 28... Rxg3+ {[%clk 0:00:27.6]} 29. Kh2
{[%clk 0:00:27.9]} 29... Rg4 {[%clk 0:00:18.6]} 30. Qf3 {[%clk 0:00:26.8]} 30...
Qd7 {[%clk 0:00:16.3]} 31. Re7 {[%clk 0:00:24.7]} 31... Qf5 {[%clk 0:00:15.1]}
32. Qd5+ {[%clk 0:00:24.1]} 32... Qxd5 {[%clk 0:00:11.3]} 33. cxd5 {[%clk
0:00:25]} 1-0

[Event "*** Titled Tuesday Blitz"]
[Site "Chess.com"]
[Date "2020.10.27"]
[Round "10"]
[White "wonderfultime"]
[Black "OK97"]
[Result "1-0"]
[WhiteElo "2931"]
[BlackElo "2799"]
[TimeControl "180+1"]
[EndTime "11:56:03 PDT"]
[Termination "wonderfultime won by resignation"]

1. d4 {[%clk 0:03:00.9]} 1... Nf6 {[%clk 0:02:59.9]} 2. Nf3 {[%clk 0:02:59.5]}
2... c5 {[%clk 0:03:00]} 3. c3 {[%clk 0:02:58.7]} 3... d5 {[%clk 0:02:56]} 4.
Bf4 {[%clk 0:02:58.3]} 4... Nc6 {[%clk 0:02:54.3]} 5. e3 {[%clk 0:02:58.6]} 5...
e6 {[%clk 0:02:47.4]} 6. Nbd2 {[%clk 0:02:57.6]} 6... cxd4 {[%clk 0:02:47.8]} 7.
exd4 {[%clk 0:02:57.6]} 7... Nh5 {[%clk 0:02:48]} 8. Bg3 {[%clk 0:02:57.2]} 8...
Be7 {[%clk 0:02:33.9]} 9. Bd3 {[%clk 0:02:57.2]} 9... Nxg3 {[%clk 0:02:29.1]}
10. hxg3 {[%clk 0:02:57.2]} 10... h6 {[%clk 0:02:28.6]} 11. Qe2 {[%clk
0:02:55.6]} 11... Qb6 {[%clk 0:02:25]} 12. Nf1 {[%clk 0:02:55.3]} 12... Bd7
{[%clk 0:02:24.5]} 13. Ne3 {[%clk 0:02:55.5]} 13... O-O-O {[%clk 0:02:23.6]} 14.
b4 {[%clk 0:02:48.3]} 14... Kb8 {[%clk 0:02:20.9]} 15. a4 {[%clk 0:02:46.8]}
15... Qc7 {[%clk 0:02:15.8]} 16. O-O {[%clk 0:02:41.8]} 16... h5 {[%clk
0:02:14.4]} 17. b5 {[%clk 0:02:39.1]} 17... Na5 {[%clk 0:02:14.5]} 18. Nxd5
{[%clk 0:02:39.6]} 18... exd5 {[%clk 0:02:12.5]} 19. Qxe7 {[%clk 0:02:40.5]}
19... Qxc3 {[%clk 0:02:09.8]} 20. Ne5 {[%clk 0:02:37.7]} 20... Be6 {[%clk
0:02:07.6]} 21. Rac1 {[%clk 0:02:33.6]} 21... Qxd4 {[%clk 0:02:03.2]} 22. Qc7+
{[%clk 0:02:33.6]} 22... Ka8 {[%clk 0:02:03.5]} 23. Qxa5 {[%clk 0:01:18.1]}
23... Qxe5 {[%clk 0:02:03.4]} 24. b6 {[%clk 0:01:18.3]} 24... Qb8 {[%clk
0:02:03.5]} 25. Rc7 {[%clk 0:01:19]} 25... Rd6 {[%clk 0:01:44.1]} 26. Qc5 {[%clk
0:00:45.4]} 26... Rhd8 {[%clk 0:01:01.4]} 27. a5 {[%clk 0:00:42.6]} 27... d4
{[%clk 0:00:33.4]} 28. Rb1 {[%clk 0:00:19.6]} 28... Rd5 {[%clk 0:00:31.8]} 29.
bxa7 {[%clk 0:00:14]} 29... Qxa7 {[%clk 0:00:24.6]} 30. Qxa7+ {[%clk 0:00:14.9]}
30... Kxa7 {[%clk 0:00:25.5]} 31. Rbxb7+ {[%clk 0:00:15.2]} 31... Ka8 {[%clk
0:00:25.8]} 32. Ra7+ {[%clk 0:00:16.1]} 32... Kb8 {[%clk 0:00:26.3]} 33. Rcb7+
{[%clk 0:00:17]} 33... Kc8 {[%clk 0:00:25.4]} 34. a6 {[%clk 0:00:17.9]} 1-0